Workbook

Sheet Cover Sheet
C2: Indicative Scottish Homelessness Budget Calculator
B5: This Scottish homelessness budget tool provides a high-level estimation of the required budget at a local authority level to tackle homelessness across Scotland. The model developed allows the user to explore the current costs of homelessness services based on the latest available Green Book data (POBE) and make adjustments based on the number of HL1 homeless assessments and the types of services used as well as any other sensitivities. This model provides a comparison of the current level of funding provided to local authorities from the Scottish Government. Guidance and information is provided for each stage of the budget calculation process. There are 5 steps to using this calculator: Step 1: Choose the breakdown for the budget calculation Start by choosing the breakdown for the data (ie an individual local authority, rural/urban local authorities, housing option hubs, or for the whole of Scotland). Step 2: Select or input the unit costs for type of services provided This step determines the service type and the annual unit costs through pre-loaded drop-down options. The user also has the option of manually adding in costs. Step 3: Determine the number of people in each service The number of people in a selection of service types can be added in here using current avaiable data, or through using estimates of the percentage of people who might be in each service. This can also be used to model what the service could like in the furture. This requires a manual input of percentages which then calculates the total number of people in each service based on homelessness assessment from 2018/19 - 2020/21. Step 4: Add in any sensitivities The final step is to add any sensitivities that you feel are relevant to the budget estimation which in effects produces a margin of error for the model. Step 5: Estimated change in demand This steps allows the user to produce budget projections for the next 2 years, using inflation and adjusting for any changes in demand.
B25: About each tab
B26: Worked example | D26: The "Worked example" tab provides an example of how this tool can be used. Inputs are taken from publically aviable data and includes a 5% increase in demand for services currently as a result of Covid-19. For the projections, it includes an increase in demand for the next two years).
B28: Budget Calculator | D28: The "Budget Calculator" tab allows you to develop an indicative budget for homelessness in Scotland across a range of levels: i) Local authority level, ii) Across Scotland, iii) Across all rural and all urban local authorities, and iv) Across Housing Options Hubs
B30: Modelling data inputs | D30: The "Modelling data inputs" tab sets out the main data sources, caveats and assumptions, as well as the unit costs for different homelessness support services which are incorporated into this budget estimation tool.
B32: Current budget data | D32: The "Current budget data" tab sets out the underlying data that this tool is built on. This tool uses information from the Scottish Government's Local Government Provisional Outturn and Budget Estimates (POBE) across the last three years (2018, 2019 and 2020), with estimates of the total number of homeless acceptances (HL1 returns) taken from the Scottish Government's green book on Grant Aided expenditure.
R34: Version | S34: 3
R35: QA | S35: 2021-01-29

Sheet 0. Worked example
B2: INPUTS for Budget adjustments | I2: Budget estimation
J3: Step 4: Sensitivity
B4: Step 1: Select location | I4: =IF(ISBLANK($D$5), "", $D$5) -> TOTAL Scotland | J4: 0.05
B5: Local authority | D5: TOTAL Scotland
B6: Average annual cost per homeless assessments (2018/19-2020/21) | D6: =IF(ISBLANK($D$5), "",VLOOKUP($D$5,'3. Current budget data'!$B$10:$S$51,17, FALSE)) -> 7613.408848 | I6: Estimated new budget by model (£) 2018/19-2020/21 | J6: Sensitivity range
B7: Total annual homeless assessments (numbers) (2018/19-2020/21) | D7: =IF(ISBLANK($D$5),"", VLOOKUP($D$5,'3. Current budget data'!$B$10:$T$51,18, FALSE)) -> 30193.66667 | I7: =IF(ISBLANK($D$5),"",SUM(($F$12*$D$22)+($F$13*$D$23)+($F$14*$D$24)+($F$15*$D$25)+($F$16*$D$26)+($F$17*$D$27))) -> 247573051.6 | J7: =IF(SUM($I$7)=0,$I$7,_xlfn.CONCAT(TEXT(((-$J$4)+1)*$I$7,"£#,###")," - ",TEXT(($J$4+1)*$I$7,"£#,###"))) -> £235,194,399 - £259,951,704
B9: Step 2: Select or input unit costs | I9: Unit cost comparison
B10: Service type | C10: Annual Unit Costs (£) (see 2. Modelling data inputs for details) | F10: Annual Unit Costs used in model (£) | I10: Average POBE costs (£) 2018/19 - 2020/21 | J10: *Estimated* unit cost by model (£) 2018/19 - 2020/21 | K10: Difference (£)
C11: Drop down options | E11: Manual input | I11: =IF(ISBLANK($D$5),"", $D$6) -> 7613.408848 | J11: =IF(SUM($D$7)=0,"",$I$7/$D$7) -> 8199.502708 | K11: =SUM($I$11)-SUM($J$11) -> -586.0938598
B12: Housing First | C12: Support cost plus SRS rent | D12: =IF(ISBLANK($C$12),0, VLOOKUP($B$12,'2. Modelling data inputs'!$B$13:$E$18,IF($C$12="Support cost", "2", IF($C$12="Support cost plus SRS rent ","3", IF($C$12="Support cost plus PRS rent ","4", ""))),FALSE)) -> 9878 | F12: =IF($E$12>0,$E$12,IF($D$12>0,$D$12,$D$6)) -> 9878
B13: Hostel | C13: Support cost | D13: =IF(ISBLANK($C$13),0, VLOOKUP($B$13,'2. Modelling data inputs'!$B$13:$E$18,IF($C$13="Support cost", "2", IF($C$13="Support cost plus SRS rent ","3", IF($C$13="Support cost plus PRS rent ","4", ""))),FALSE)) -> 12878 | F13: =IF($E$13>0,$E$13,IF($D$13>0,$D$13,$D$6)) -> 12878 | I13: Budget comparison
B14: High Intensity Supported Accommodation | C14: Support cost | D14: =IF(ISBLANK($C$14),0, VLOOKUP($B$14,'2. Modelling data inputs'!$B$13:$E$18,IF($C$14="Support cost", "2", IF($C$14="Support cost plus SRS rent ","3", IF($C$14="Support cost plus PRS rent ","4", ""))),FALSE)) -> 18885 | F14: =IF($E$14>0,$E$14,IF($D$14>0,$D$14,$D$6)) -> 18885 | I14: Average POBE expenditure (£) 2018/19-2020/21 | J14: Estimated new budget range by model (£) 2018/19-2020/21 | K14: Difference (£)
B15: Low Intensity Accommodation Based Support | C15: Support cost plus SRS rent | D15: =IF(ISBLANK($C$15),0, VLOOKUP($B$15,'2. Modelling data inputs'!$B$13:$E$18,IF($C$15="Support cost", "2", IF($C$15="Support cost plus SRS rent ","3", IF($C$15="Support cost plus PRS rent ","4", ""))),FALSE)) -> 12160 | F15: =IF($E$15>0,$E$15,IF($D$15>0,$D$15,$D$6)) -> 12160 | I15: =IF(ISBLANK($D$5),"",SUM($D$6*$D$7)) -> 229876729 | J15: =$J$7 -> £235,194,399 - £259,951,704 | K15: =SUM($I$15)-SUM($I$7) -> -17696322.64
B16: Floating Support | C16: Support cost | D16: =IF(ISBLANK($C$16),0, VLOOKUP($B$16,'2. Modelling data inputs'!$B$13:$E$18,IF($C$16="Support cost", "2", IF($C$16="Support cost plus SRS rent ","3", IF($C$16="Support cost plus PRS rent ","4", ""))),FALSE)) -> 3046 | F16: =IF($E$16>0,$E$16,IF($D$16>0,$D$16,$D$6)) -> 3046
B17: Other or unspecified | D17: =$D$6 -> 7613.408848 | F17: =IF($E$17=0,$D$17,$E$17) -> 7613.408848 | I17: Budget forecast | J17: Estimated budget (2021/22) (£) | K17: Estimated budget (2022/23) (£)
I18: Adjusted for annual inflation of 2% | J18: =IF(SUM($I$7)=0,$J$7,_xlfn.CONCAT(TEXT(((-$J$4)+1)*$I$7*(0.02+1)*(IF(ISNUMBER($J$20),$J$20,0)+1),"£#,###")," - ",TEXT(($J$4+1)*$I$7*(0.02+1)*(IF(ISNUMBER($J$20),$J$20,0)+1),"£#,###"))) -> £275,883,030 - £304,923,349 | K18: =IF(SUM($I$7)=0,$I$7,_xlfn.CONCAT(TEXT(((-$J$4)+1)*$I$7*(0.02+1)*(0.02+1)*(IF(ISNUMBER($J$20),$J$20,0)+1)*(IF(ISNUMBER($K$20),$K$20,0)+1),"£#,###")," - ",TEXT(($J$4+1)*$I$7*(0.02+1)*(0.02+1)*(IF(ISNUMBER($J$20),$J$20,0)+1)*(IF(ISNUMBER($K$20),$K$20,0)+1),"£#,###"))) -> £295,470,725 - £326,572,907
B19: Step 3: Input users by service type
B20: Service type | C20: Estimated % of people in each service | D20: Estimated number of people annually in each service | I20: Step 5: Expected annual change in demand | J20: 0.15 | K20: 0.05
B22: Housing First | C22: 0.01 | D22: =IF(ISBLANK($D$5), "", $D$7*$C$22) -> 301.9366667
B23: Hostel | C23: 0.26 | D23: =IF(ISBLANK($D$5), "", $D$7*$C$23) -> 7850.353333
B24: High Intensity Supported Accommodation | C24: 0.01 | D24: =IF(ISBLANK($D$5), "", $D$7*$C$24) -> 301.9366667 | H24: Caveats for budget estimation: 1. Based on ringfencing of POBE budget which is not the case. New budget estimates, and therefore the difference in budgets is likely to be an underestimate. 2. Service costs are based on the best available data for service types based on data from and English study. The use of these figures seeks to demonstrates the differences in the cost of support services and the impact this will have on the budget 3. Inflation is adjusted for in the annual service unit costs and for the budget projections 4. The sensitivity analysis can be used to allow for any margins of error and is recommended for use in developing a new budget estimate
B25: Low Intensity Accommodation Based Support | C25: 0.22 | D25: =IF(ISBLANK($D$5), "", $D$7*$C$25) -> 6642.606667
B26: Floating Support | C26: 0.42 | D26: =IF(ISBLANK($D$5), "", $D$7*$C$26) -> 12681.34
B27: Other or unspecified | C27: =100%-SUM($C$22:$C$26) -> 0.08 | D27: =IF(ISBLANK($D$5), "", $D$7*$C$27) -> 2415.493333
C28: =SUM($C$22:$C$27) -> 1 | D28: =SUM($D$22:$D$27) -> 30193.66667

Sheet Sheet1 (hidden)
B1: Costing Tool 2
C4: Projected cost: | D4: =SUM(D13*(1+D15)) -> 
C9: Local Authority: | D9: Shetland Islands
C11: 2020 homeless applications (HL1 returns): | D11: =VLOOKUP(D9,#REF!, 2, FALSE) -> 
C12: Average cost per homeless application (2018 to 2020): | D12: =VLOOKUP(D9,#REF!, 3, FALSE) -> 
C13: Housing and homelessness outturn expenditure 2020/21 | D13: =VLOOKUP(D9,#REF!, 4, FALSE) -> 
C15: Please choose budget adjustment: | D15: 0
C16: based on incresea or decrease in demand

Sheet 1. Budget Calculator
B2: INPUTS for Budget adjustments | I2: Budget estimation
J3: Step 4: Sensitivity
B4: Step 1: Select location | I4: =IF(ISBLANK($D$5), "", $D$5) -> 
B5: Local authority
B6: Average annual cost per homeless assessments (2018/19-2020/21) | D6: =IF(ISBLANK($D$5), "",VLOOKUP($D$5,'3. Current budget data'!$B$10:$S$51,17, FALSE)) ->  | I6: Estimated new budget by model (£) 2018/19-2020/21 | J6: Sensitivity range
B7: Average annual homeless assessments (numbers) (2018/19-2020/21) | D7: =IF(ISBLANK($D$5),"", VLOOKUP($D$5,'3. Current budget data'!$B$10:$T$51,18, FALSE)) ->  | I7: =IF(ISBLANK($D$5),"",SUM(($F$12*$D$22)+($F$13*$D$23)+($F$14*$D$24)+($F$15*$D$25)+($F$16*$D$26)+($F$17*$D$27))) ->  | J7: =IF(SUM($I$7)=0,$I$7,_xlfn.CONCAT(TEXT(((-$J$4)+1)*$I$7,"£#,###")," - ",TEXT(($J$4+1)*$I$7,"£#,###"))) -> 
B9: Step 2: Select or input unit costs | I9: Unit cost comparison
B10: Service type | C10: Annual Unit Costs (£) (see 2. Modelling data inputs for details) | F10: Annual Unit Costs used in model (£) | I10: Average POBE costs (£) 2018/19 - 2020/21 | J10: *Estimated* unit cost by model (£) 2018/19 - 2020/21 | K10: Difference (£)
C11: Drop down options | E11: Manual input | I11: =IF(ISBLANK($D$5),"", $D$6) ->  | J11: =IF(SUM($D$7)=0,"",$I$7/$D$7) ->  | K11: =SUM($I$11)-SUM($J$11) -> 0
B12: Housing First | D12: =IF(ISBLANK($C$12),0, VLOOKUP($B$12,'2. Modelling data inputs'!$B$13:$E$18,IF($C$12="Support cost", "2", IF($C$12="Support cost plus SRS rent ","3", IF($C$12="Support cost plus PRS rent ","4", ""))),FALSE)) -> 0 | F12: =IF($E$12>0,$E$12,IF($D$12>0,$D$12,$D$6)) -> 
B13: Hostel | D13: =IF(ISBLANK($C$13),0, VLOOKUP($B$13,'2. Modelling data inputs'!$B$13:$E$18,IF($C$13="Support cost", "2", IF($C$13="Support cost plus SRS rent ","3", IF($C$13="Support cost plus PRS rent ","4", ""))),FALSE)) -> 0 | F13: =IF($E$13>0,$E$13,IF($D$13>0,$D$13,$D$6)) ->  | I13: Budget comparison
B14: High Intensity Supported Accommodation | D14: =IF(ISBLANK($C$14),0, VLOOKUP($B$14,'2. Modelling data inputs'!$B$13:$E$18,IF($C$14="Support cost", "2", IF($C$14="Support cost plus SRS rent ","3", IF($C$14="Support cost plus PRS rent ","4", ""))),FALSE)) -> 0 | F14: =IF($E$14>0,$E$14,IF($D$14>0,$D$14,$D$6)) ->  | I14: Average POBE expenditure (£) 2018/19-2020/21 | J14: Estimated new budget range by model (£) 2018/19-2020/21 | K14: Difference (£)
B15: Low Intensity Accommodation Based Support | D15: =IF(ISBLANK($C$15),0, VLOOKUP($B$15,'2. Modelling data inputs'!$B$13:$E$18,IF($C$15="Support cost", "2", IF($C$15="Support cost plus SRS rent ","3", IF($C$15="Support cost plus PRS rent ","4", ""))),FALSE)) -> 0 | F15: =IF($E$15>0,$E$15,IF($D$15>0,$D$15,$D$6)) ->  | I15: =IF(ISBLANK($D$5),"",SUM($D$6*$D$7)) ->  | J15: =$J$7 ->  | K15: =SUM($I$7)-SUM($I$15) -> 0
B16: Floating Support | D16: =IF(ISBLANK($C$16),0, VLOOKUP($B$16,'2. Modelling data inputs'!$B$13:$E$18,IF($C$16="Support cost", "2", IF($C$16="Support cost plus SRS rent ","3", IF($C$16="Support cost plus PRS rent ","4", ""))),FALSE)) -> 0 | F16: =IF($E$16>0,$E$16,IF(ISNUMBER($D$16),$D$16,$D$6)) -> 0
B17: Other or unspecified | D17: =$D$6 ->  | F17: =IF($E$17=0,$D$17,$E$17) ->  | I17: Budget forecast | J17: Estimated budget (2021/22) (£) | K17: Estimated budget (2022/23) (£)
I18: Adjusted for annual inflation of 2% | J18: =IF(SUM($I$7)=0,$J$7,_xlfn.CONCAT(TEXT(((-$J$4)+1)*$I$7*(0.02+1)*(IF(ISNUMBER($J$20),$J$20,0)+1),"£#,###")," - ",TEXT(($J$4+1)*$I$7*(0.02+1)*(IF(ISNUMBER($J$20),$J$20,0)+1),"£#,###"))) ->  | K18: =IF(SUM($I$7)=0,$I$7,_xlfn.CONCAT(TEXT(((-$J$4)+1)*$I$7*(0.02+1)*(0.02+1)*(IF(ISNUMBER($J$20),$J$20,0)+1)*(IF(ISNUMBER($K$20),$K$20,0)+1),"£#,###")," - ",TEXT(($J$4+1)*$I$7*(0.02+1)*(0.02+1)*(IF(ISNUMBER($J$20),$J$20,0)+1)*(IF(ISNUMBER($K$20),$K$20,0)+1),"£#,###"))) -> 
B19: Step 3: Input users by service type
B20: Service type | C20: Estimated % of people in each service | D20: Estimated number of people annually in each service | I20: Step 5: Expected annual change in demand
B22: Housing First | D22: =IF(ISBLANK($D$5), "", $D$7*$C$22) -> 
B23: Hostel | D23: =IF(ISBLANK($D$5), "", $D$7*$C$23) -> 
B24: High Intensity Supported Accommodation | D24: =IF(ISBLANK($D$5), "", $D$7*$C$24) ->  | H24: Caveats for budget estimation: 1. Based on ringfencing of POBE budget which is not the case. New budget estimates, and therefore the difference in budgets is likely to be an underestimate. 2. Service costs are based on the best available data for service types based on data from and English study. The use of these figures seeks to demonstrates the differences in the cost of support services and the impact this will have on the budget 3. Inflation is adjusted for in the annual service unit costs and for the budget projections 4. The sensitivity analysis can be used to allow for any margins of error and is recommended for use in developing a new budget estimate
B25: Low Intensity Accommodation Based Support | D25: =IF(ISBLANK($D$5), "", $D$7*$C$25) -> 
B26: Floating Support | D26: =IF(ISBLANK($D$5), "", $D$7*$C$26) -> 
B27: Other or unspecified | C27: =100%-SUM($C$22:$C$26) -> 1 | D27: =IF(ISBLANK($D$5), "", $D$7*$C$27) -> 
C28: =SUM($C$22:$C$27) -> 1 | D28: =SUM($D$22:$D$27) -> 0

Sheet 2. Modelling data inputs
B2: The data for modelling and budget estimation
B5: Scottish Local Authority Unit Costs
C6: Calculation | F6: Data Source | G6: Data Source Link
B7: 2018/19 | C7: Total number of homeless applications (HL1 returns) across Scotland in 2018/19 | F7: Scottish Government: Homelessness in Scotland: 2019 to 2020 (Tables (August 2020)) | G7: https://www.gov.scot/publications/homelessness-scotland-2019-2020/
B8: 2019/20 | C8: Total number of homeless applications (HL1 returns) across Scotland in 2019/20 | F8: Scottish Government: Homelessness in Scotland: 2019 to 2020 (Tables (August 2020)) | G8: https://www.gov.scot/publications/homelessness-scotland-2019-2020/
B9: 2020/21 | C9: Total number of homeless applications (HL1 returns) across Scotland in 2020/21 | F9: Scottish Government - Grant Aided Expenditure (Green Book 2020-21) | G9: https://www.gov.scot/binaries/content/documents/govscot/publications/statistics/2019/03/grant-aided-expenditure/documents/2020-21/green-book-2020-21/green-book-2020-21/govscot%3Adocument/Green%2BBook%2B2020-21.pdf
B10: Overall Unit Cost | C10: Average annual unit cost of homelessness support and services per individual. Estimated by taking an average across all 32 Scottish Local Authorities (excluding Inverclyde as an outlier) and averaged across the last three years (2018, 2019, 2020) | F10: Scottish Government - Local government 2019-2020 provisional outturn and 2020-2021 budget estimates – revenue (Provisional Outturn and Budget Estimates (POBE) Workbook 2020; Local government revenue expenditure and financing 2018-2019: provisional outturn and budget estimates (POBE 2019: publication workbook) | G10: https://www.gov.scot/publications/local-government-2019-20-provisional-outturn-2020-21-budget-estimates-revenue/; https://www.gov.scot/publications/local-government-revenue-expenditure-financing-2018-19-provisional-outturn-2019-20-budget-estimates/pages/4/
B12: Element approach - unit costs for different services
B13: Service type | C13: Support cost | D13: Support cost plus SRS rent | E13: Support cost plus PRS rent | F13: Data Source | G13: Data Source Link | H13: Adjustments Made
B14: Housing First | C14: 4296 | D14: 9878 | E14: 9592 | F14: Homeless Link, March 2019, The cost effectiveness of Housing First in England | G14: https://hfe.homeless.org.uk/sites/default/files/attachments/The%20cost%20effectiveness%20of%20Housing%20First%20in%20England_March%202019_0.pdf | H14: Support cost adjusted for inflation to October 2020; SRS/PRS rent adjusted for inflation to October 2020
B15: Hostel | C15: 12878 | D15: 18460 | E15: 18174 | F15: Homeless Link, March 2019, The cost effectiveness of Housing First in England | G15: https://hfe.homeless.org.uk/sites/default/files/attachments/The%20cost%20effectiveness%20of%20Housing%20First%20in%20England_March%202019_0.pdf | H15: Support cost adjusted for inflation to October 2020; SRS/PRS rent adjusted for inflation to October 2020
B16: High intensity supported accommodation | C16: 18885 | D16: 24467 | E16: 24181 | F16: Homeless Link, March 2019, The cost effectiveness of Housing First in England | G16: https://hfe.homeless.org.uk/sites/default/files/attachments/The%20cost%20effectiveness%20of%20Housing%20First%20in%20England_March%202019_0.pdf | H16: Support cost adjusted for inflation to October 2020; SRS/PRS rent adjusted for inflation to October 2020
B17: Low Intensity Accommodation Based Support | C17: 6578 | D17: 12160 | E17: 11874 | F17: Crisis, July 2015, At what cost? An estimation of the financial costs of single homelessness in the UK | G17: https://www.crisis.org.uk/media/20677/crisis_at_what_cost_2015.pdf | H17: Weekly support cost adjusted to yearly; cost adjusted for inflation to October 2020; SRS/PRS rent adjusted for inflation to October 2020
B18: Floating support | C18: 3046 | D18: N/A | E18: N/A | F18: Crisis, July 2015, At what cost? An estimation of the financial costs of single homelessness in the UK | G18: https://www.crisis.org.uk/media/20677/crisis_at_what_cost_2015.pdf | H18: Weekly support cost adjusted to yearly; cost adjusted for inflation to October 2020; SRS/PRS rent adjusted for inflation to October 2020

Sheet 3. Current budget data
B2: The data behind current budget estimations
B5: The model uses information from the Scottish Government's Local Government Provisional Outturn and Budget Estimates (POBE) across the last three years (2018, 2019 and 2020), in conjunction with estimates of the total number of homeless applications (HL1 returns) taken from the Scottish Government's green book on Grant Aided expenditure
B7: https://www.gov.scot/publications/homelessness-scotland-2019-2020/ | D7: https://www.gov.scot/binaries/content/documents/govscot/publications/statistics/2019/03/grant-aided-expenditure/documents/2020-21/green-book-2020-21/green-book-2020-21/govscot%3Adocument/Green%2BBook%2B2020-21.pdf
C9: 2018/19 | H9: 2019/20 | M9: 2020/21
B10: Local Authority | C10: Housing Support Services (provisional outturn) | D10: Homelessness (provisional outturn) | E10: Total provisional outturn | F10: Homeless/threatened with homelessness acceptances | G10: Unit cost | H10: Housing Support Services (provisional outturn) | I10: Homelessness (provisional outturn) | J10: Total provisional outturn | K10: Homeless/threatened with homelessness acceptances | L10: Unit cost | M10: Housing Support Services (budget estimate) | N10: Homelessness (budget estimate) | O10: Total budget | P10: Homeless acceptances 2016/2017 - 2018/2019 | Q10: Unit cost | R10: Average unit cost 2018/19-2020/21 | S10: Average acceptances 2018/19-2020/21 | T10: Regional Hub | U10: Rural/Urban
B11: Aberdeen City | C11: 3068000 | D11: 2755000 | E11: =SUM(C11:D11) -> 5823000 | F11: 1305 | G11: =SUM(E11/F11) -> 4462.068966 | H11: 2897000 | I11: 1586000 | J11: =SUM(H11:I11) -> 4483000 | K11: 1245 | L11: =SUM(J11/K11) -> 3600.803213 | M11: 2629000 | N11: 2089000 | O11: =SUM(M11:N11) -> 4718000 | P11: 1304 | Q11: =SUM(O11/P11) -> 3618.09816 | R11: =AVERAGE(G11,L11,Q11) -> 3893.656779 | S11: =AVERAGE(F11,K11,P11) -> 1284.666667 | T11: North and Islands | U11: Urban | Y11: Urban | Z11: =SUMIF($U$11:$U$42,$Y$11,$F$11:$F$42) -> 24010
B12: Aberdeenshire | C12: 668000 | D12: 3692000 | E12: 4360000 | F12: 970 | G12: =SUM(E12/F12) -> 4494.845361 | H12: 584000 | I12: 2612000 | J12: =SUM(H12:I12) -> 3196000 | K12: 1060 | L12: 3015.09434 | M12: 1060000 | N12: 3276000 | O12: =SUM(M12:N12) -> 4336000 | P12: 933 | Q12: =SUM(O12/P12) -> 4647.374062 | R12: =AVERAGE(G12,L12,Q12) -> 4052.437921 | S12: =AVERAGE(F12,K12,P12) -> 987.6666667 | T12: North and Islands | U12: Rural | Y12: Rural | Z12: =SUMIF($U$11:$U$42,$Y$12,$F$11:$F$42) -> 5890
B13: Angus | C13: 1196000 | D13: 1421000 | E13: 2617000 | F13: 590 | G13: 4435.59322 | H13: 1146000 | I13: 1283000 | J13: 2429000 | K13: 500 | L13: 4858 | M13: 1253000 | N13: 1307000 | O13: 2560000 | P13: 606 | Q13: 4224.422442 | R13: 4506.005221 | S13: 565.3333333 | T13: Tayside, Fife and Central | U13: Urban | Z13: =SUM(Z11:Z12) -> 29900
B14: Argyll & Bute | C14: 1055000 | D14: 1583000 | E14: 2638000 | F14: 350 | G14: 7537.142857 | H14: 1057000 | I14: 1542000 | J14: 2599000 | K14: 340 | L14: 7644.117647 | M14: 1058000 | N14: 1556000 | O14: 2614000 | P14: 392 | Q14: 6668.367347 | R14: 7283.209284 | S14: 360.6666667 | T14: Tayside, Fife and Central | U14: Rural
B15: Clackmannanshire | C15: 82000 | D15: -321000 | E15: -239000 | F15: 470 | G15: -508.5106383 | H15: 166000 | I15: -906000 | J15: -740000 | K15: 425 | L15: -1741.176471 | M15: 266000 | N15: -393000 | O15: -127000 | P15: 444 | Q15: -286.036036 | R15: -845.2410483 | S15: 446.3333333 | T15: Tayside, Fife and Central | U15: Urban
B16: Dumfries & Galloway | C16: 3857000 | D16: 2133000 | E16: 5990000 | F16: 715 | G16: 8377.622378 | H16: 3285000 | I16: 2723000 | J16: 6008000 | K16: 730 | L16: 8230.136986 | M16: 3366000 | N16: 2644000 | O16: 6010000 | P16: 657 | Q16: 9147.640791 | R16: 8585.133385 | S16: 700.6666667 | T16: Ayrshire and South | U16: Rural
B17: Dundee City | C17: 1481000 | D17: 1882000 | E17: 3363000 | F17: 1020 | G17: 3297.058824 | H17: 1404000 | I17: 2965000 | J17: 4369000 | K17: 1020 | L17: 4283.333333 | M17: 1421000 | N17: 2909000 | O17: 4330000 | P17: 995 | Q17: 4351.758794 | R17: 3977.38365 | S17: 1011.666667 | T17: Tayside, Fife and Central | U17: Urban
B18: East Ayrshire | C18: 6447000 | D18: 988000 | E18: 7435000 | F18: 625 | G18: 11896 | H18: 6514000 | I18: 891000 | J18: 7405000 | K18: 720 | L18: 10284.72222 | M18: 6514000 | N18: 1181000 | O18: 7695000 | P18: 529 | Q18: 14546.3138 | R18: 12242.34534 | S18: 624.6666667 | T18: Ayrshire and South | U18: Urban
B19: East Dunbartonshire | C19: 75000 | D19: 976000 | E19: 1051000 | F19: 315 | G19: 3336.507937 | H19: 71000 | I19: 1248000 | J19: 1319000 | K19: 350 | L19: 3768.571429 | M19: 71000 | N19: 830000 | O19: 901000 | P19: 353 | Q19: 2552.407932 | R19: 3219.162432 | S19: 339.3333333 | T19: West | U19: Urban
B20: East Lothian | C20: 865000 | D20: 1666000 | E20: 2531000 | F20: 660 | G20: 3834.848485 | H20: 870000 | I20: 1796000 | J20: 2666000 | K20: 635 | L20: 4198.425197 | M20: 897000 | N20: 1886000 | O20: 2783000 | P20: 657 | Q20: 4235.920852 | R20: 4089.731511 | S20: 650.6666667 | T20: Edinburgh, Lothians and Borders | U20: Rural
B21: East Renfrewshire | C21: 0 | D21: 1099000 | E21: 1099000 | F21: 270 | G21: 4070.37037 | H21: 0 | I21: 1248000 | J21: 1248000 | K21: 305 | L21: 4091.803279 | M21: 0 | N21: 1239000 | O21: 1239000 | P21: 270 | Q21: 4588.888889 | R21: 4250.354179 | S21: 281.6666667 | T21: West | U21: Urban
B22: Edinburgh (City of) | C22: 13882000 | D22: 18213000 | E22: 32095000 | F22: 3075 | G22: 10437.39837 | H22: 13196000 | I22: 18398000 | J22: 31594000 | K22: 3355 | L22: 9416.989568 | M22: 15330000 | N22: 20216000 | O22: 35546000 | P22: 3182 | Q22: 11170.96166 | R22: 10341.7832 | S22: 3204 | T22: Edinburgh, Lothians and Borders | U22: Urban
B23: Eilean Siar | C23: 852000 | D23: 608000 | E23: 1460000 | F23: 115 | G23: 12695.65217 | H23: 1130000 | I23: 489000 | J23: 1619000 | K23: 120 | L23: 13491.66667 | M23: 1026000 | N23: 523000 | O23: 1549000 | P23: 108 | Q23: 14342.59259 | R23: 13509.97048 | S23: 114.3333333 | T23: North and Islands | U23: Rural
B24: Falkirk | C24: 1371000 | D24: 1221000 | E24: 2592000 | F24: 815 | G24: 3180.368098 | H24: 1118000 | I24: 1144000 | J24: 2262000 | K24: 970 | L24: 2331.958763 | M24: 1133000 | N24: 1312000 | O24: 2445000 | P24: 866 | Q24: 2823.325635 | R24: 2778.550832 | S24: 883.6666667 | T24: Edinburgh, Lothians and Borders | U24: Urban
B25: Fife | C25: 1354000 | D25: 6462000 | E25: 7816000 | F25: 2065 | G25: 3784.987893 | H25: 1361000 | I25: 5345000 | J25: 6706000 | K25: 2105 | L25: 3185.748219 | M25: 1465000 | N25: 5565000 | O25: 7030000 | P25: 1992 | Q25: 3529.116466 | R25: 3499.950859 | S25: 2054 | T25: Tayside, Fife and Central | U25: Urban
B26: Glasgow City | C26: 17929000 | D26: 33888000 | E26: 51817000 | F26: 4660 | G26: 11119.5279 | H26: 1725000 | I26: 44502000 | J26: 46227000 | K26: 5260 | L26: 8788.403042 | M26: 1462000 | N26: 44745000 | O26: 46207000 | P26: 4415 | Q26: 10465.91166 | R26: 10124.6142 | S26: 4778.333333 | T26: West | U26: Urban
B27: Highland | C27: 1544000 | D27: 1974000 | E27: 3518000 | F27: 1090 | G27: 3227.522936 | H27: 1450000 | I27: 2180000 | J27: 3630000 | K27: 1130 | L27: 3212.389381 | M27: 1544000 | N27: 2171000 | O27: 3715000 | P27: 1067 | Q27: 3481.724461 | R27: 3307.212259 | S27: 1095.666667 | T27: North and Islands | U27: Rural
B28: Inverclyde | C28: 4599000 | D28: 787000 | E28: 5386000 | F28: 140 | G28: 38471.42857 | H28: 4530000 | I28: 1001000 | J28: 5531000 | K28: 170 | L28: 32535.29412 | M28: 4540000 | N28: 986000 | O28: 5526000 | P28: 166 | Q28: 33289.15663 | R28: 34765.29311 | S28: 158.6666667 | T28: Ayrshire and South | U28: Urban
B29: Midlothian | C29: 6109000 | D29: 1577000 | E29: 7686000 | F29: 465 | G29: 16529.03226 | H29: 5185000 | I29: 995000 | J29: 6180000 | K29: 450 | L29: 13733.33333 | M29: 5935000 | N29: 776000 | O29: 6711000 | P29: 491 | Q29: 13668.02444 | R29: 14643.46334 | S29: 468.6666667 | T29: Edinburgh, Lothians and Borders | U29: Urban
B30: Moray | C30: 5633000 | D30: 1142000 | E30: 6775000 | F30: 380 | G30: 17828.94737 | H30: 5807000 | I30: 956000 | J30: 6763000 | K30: 385 | L30: 17566.23377 | M30: 6165000 | N30: 1049000 | O30: 7214000 | P30: 371 | Q30: 19444.74394 | R30: 18279.97502 | S30: 378.6666667 | T30: North and Islands | U30: Rural
B31: North Ayrshire | C31: 6443000 | D31: -114000 | E31: 6329000 | F31: 785 | G31: 8062.420382 | H31: 5875000 | I31: 297000 | J31: 6172000 | K31: 925 | L31: 6672.432432 | M31: 5897000 | N31: 587000 | O31: 6484000 | P31: 762 | Q31: 8509.186352 | R31: 7748.013055 | S31: 824 | T31: Ayrshire and South | U31: Urban
B32: North Lanarkshire | C32: 1995000 | D32: 1571000 | E32: 3566000 | F32: 2010 | G32: 1774.129353 | H32: 1552000 | I32: 2042000 | J32: 3594000 | K32: 1775 | L32: 2024.788732 | M32: 1801000 | N32: 1981000 | O32: 3782000 | P32: 1774 | Q32: 2131.905299 | R32: 1976.941128 | S32: 1853 | T32: West | U32: Urban
B33: Orkney Islands | C33: 0 | D33: 765000 | E33: 765000 | F33: 105 | G33: 7285.714286 | H33: 0 | I33: 716000 | J33: 716000 | K33: 90 | L33: 7955.555556 | M33: 0 | N33: 826000 | O33: 826000 | P33: 100 | Q33: 8260 | R33: 7833.756614 | S33: 98.33333333 | T33: North and Islands | U33: Rural
B34: Perth & Kinross | C34: 2279000 | D34: 2206000 | E34: 4485000 | F34: 800 | G34: 5606.25 | H34: 2461000 | I34: 2399000 | J34: 4860000 | K34: 640 | L34: 7593.75 | M34: 2368000 | N34: 1990000 | O34: 4358000 | P34: 779 | Q34: 5594.351733 | R34: 6264.783911 | S34: 739.6666667 | T34: Tayside, Fife and Central | U34: Rural
B35: Renfrewshire | C35: 1358000 | D35: 2171000 | E35: 3529000 | F35: 705 | G35: 5005.673759 | H35: 1315000 | I35: 2537000 | J35: 3852000 | K35: 730 | L35: 5276.712329 | M35: 1312000 | N35: 2551000 | O35: 3863000 | P35: 670 | Q35: 5765.671642 | R35: 5349.352576 | S35: 701.6666667 | T35: West | U35: Urban
B36: Scottish Borders | C36: 2000 | D36: 1812000 | E36: 1814000 | F36: 610 | G36: 2973.770492 | H36: 2000 | I36: 1756000 | J36: 1758000 | K36: 640 | L36: 2746.875 | M36: 2000 | N36: 2227000 | O36: 2229000 | P36: 593 | Q36: 3758.853288 | R36: 3159.832927 | S36: 614.3333333 | T36: Edinburgh, Lothians and Borders | U36: Rural
B37: Shetland Islands | C37: 512000 | D37: 378000 | E37: 890000 | F37: 95 | G37: 9368.421053 | H37: 521000 | I37: 499000 | J37: 1020000 | K37: 90 | L37: 11333.33333 | M37: 561000 | N37: 479000 | O37: 1040000 | P37: 99 | Q37: 10505.05051 | R37: 10402.2683 | S37: 94.66666667 | T37: North and Islands | U37: Rural
B38: South Ayrshire | C38: 1903000 | D38: 1181000 | E38: 3084000 | F38: 630 | G38: 4895.238095 | H38: 1302000 | I38: 1817000 | J38: 3119000 | K38: 720 | L38: 4331.944444 | M38: 1811000 | N38: 1077000 | O38: 2888000 | P38: 628 | Q38: 4598.726115 | R38: 4608.636218 | S38: 659.3333333 | T38: Ayrshire and South | U38: Urban
B39: South Lanarkshire | C39: 1831000 | D39: 4627000 | E39: 6458000 | F39: 1570 | G39: 4113.375796 | H39: 1841000 | I39: 6252000 | J39: 8093000 | K39: 1750 | L39: 4624.571429 | M39: 1850000 | N39: 6183000 | O39: 8033000 | P39: 1615 | Q39: 4973.993808 | R39: 4570.647011 | S39: 1645 | T39: West | U39: Urban
B40: Stirling | C40: 4890000 | D40: 2328000 | E40: 7218000 | F40: 455 | G40: 15863.73626 | H40: 4637000 | I40: 2372000 | J40: 7009000 | K40: 590 | L40: 11879.66102 | M40: 4817000 | N40: 2356000 | O40: 7173000 | P40: 434 | Q40: 16527.64977 | R40: 14757.01568 | S40: 493 | T40: Tayside, Fife and Central | U40: Urban
B41: West Dunbartonshire | C41: 4607000 | D41: 524000 | E41: 5131000 | F41: 930 | G41: 5517.204301 | H41: 4605000 | I41: 866000 | J41: 5471000 | K41: 890 | L41: 6147.191011 | M41: 4506000 | N41: 559000 | O41: 5065000 | P41: 940 | Q41: 5388.297872 | R41: 5684.231062 | S41: 920 | T41: West | U41: Urban
B42: West Lothian | C42: 1325000 | D42: 4367000 | E42: 5692000 | F42: 1110 | G42: 5127.927928 | H42: 1326000 | I42: 4486000 | J42: 5812000 | K42: 1225 | L42: =SUM(J42/K42) -> 4744.489796 | M42: 1174000 | N42: 3920000 | O42: 5094000 | P42: 1149 | Q42: 4433.420366 | R42: 4768.612696 | S42: 1161.333333 | T42: Edinburgh, Lothians and Borders | U42: Urban
B43: TOTAL Scotland | C43: =SUM(C11:C42) -> 99212000 | D43: =SUM(D11:D42) -> 105562000 | E43: =SUM(E11:E42) -> 204774000 | F43: =SUM(F11:F42) -> 29900 | G43: =AVERAGE(G11:G42) -> 7753.196095 | H43: =SUM(H11:H42) -> 78933000 | I43: =SUM(I11:I42) -> 118037000 | J43: =SUM(J11:J42) -> 196970000 | K43: =SUM(K11:K42) -> 31340 | L43: =AVERAGE(L11:L42) -> 7244.598535 | M43: =SUM(M11:M42) -> 83234000 | N43: =SUM(N11:N42) -> 120603000 | O43: =SUM(O11:O42) -> 203837000 | P43: =SUM(P11:P42) -> 29341 | Q43: =AVERAGE(Q11:Q42) -> 7842.431914 | R43: =AVERAGE(R11:R42) -> 7613.408848 | S43: =SUM(S11:S42) -> 30193.66667
B44: AVERAGE Urban | C44: =SUMIF($U$11:$U$42,"Urban",C$11:C$42) -> 81945000 | D44: =SUMIF($U$11:$U$42,"Urban",D$11:D$42) -> 87603000 | E44: =SUMIF($U$11:$U$42,"Urban",E$11:E$42) -> 169548000 | F44: =SUMIF($U$11:$U$42,"Urban",F$11:F$42) -> 24010 | G44: =AVERAGEIF($U$11:$U$42,"Urban",G$11:G$42) -> 7851.025602 | H44: =SUMIF($U$11:$U$42,"Urban",H$11:H$42) -> 61766000 | I44: =SUMIF($U$11:$U$42,"Urban",I$11:I$42) -> 100369000 | J44: =SUMIF($U$11:$U$42,"Urban",J$11:J$42) -> 162135000 | K44: =SUMIF($U$11:$U$42,"Urban",K$11:K$42) -> 25480 | L44: =AVERAGEIF($U$11:$U$42,"Urban",L$11:L$42) -> 6897.12263 | M44: =SUMIF($U$11:$U$42,"Urban",M$11:M$42) -> 65187000 | N44: =SUMIF($U$11:$U$42,"Urban",N$11:N$42) -> 101976000 | O44: =SUMIF($U$11:$U$42,"Urban",O$11:O$42) -> 167163000 | P44: =SUMIF($U$11:$U$42,"Urban",P$11:P$42) -> 23585 | Q44: =AVERAGEIF($U$11:$U$42,"Urban",Q$11:Q$42) -> 7660.533414 | R44: =AVERAGEIF($U$11:$U$42,"Urban",R$11:R$42) -> 7469.560549 | S44: =AVERAGEIF($U$11:$U$42,"Urban",S$11:S$42) -> 1159.920635
B45: AVERAGE Rural | C45: =SUMIF($U$11:$U$42,"Rural",C$11:C$42) -> 17267000 | D45: =SUMIF($U$11:$U$42,"Rural",D$11:D$42) -> 17959000 | E45: =SUMIF($U$11:$U$42,"Rural",E$11:E$42) -> 35226000 | F45: =SUMIF($U$11:$U$42,"Rural",F$11:F$42) -> 5890 | G45: =AVERAGEIF($U$11:$U$42,"Rural",G$11:G$42) -> 7566.430672 | H45: =SUMIF($U$11:$U$42,"Rural",H$11:H$42) -> 17167000 | I45: =SUMIF($U$11:$U$42,"Rural",I$11:I$42) -> 17668000 | J45: =SUMIF($U$11:$U$42,"Rural",J$11:J$42) -> 34835000 | K45: =SUMIF($U$11:$U$42,"Rural",K$11:K$42) -> 5860 | L45: =AVERAGEIF($U$11:$U$42,"Rural",L$11:L$42) -> 7907.961625 | M45: =SUMIF($U$11:$U$42,"Rural",M$11:M$42) -> 18047000 | N45: =SUMIF($U$11:$U$42,"Rural",N$11:N$42) -> 18627000 | O45: =SUMIF($U$11:$U$42,"Rural",O$11:O$42) -> 36674000 | P45: =SUMIF($U$11:$U$42,"Rural",P$11:P$42) -> 5756 | Q45: =AVERAGEIF($U$11:$U$42,"Rural",Q$11:Q$42) -> 8189.692688 | R45: =AVERAGEIF($U$11:$U$42,"Rural",R$11:R$42) -> 7888.028328 | S45: =AVERAGEIF($U$11:$U$42,"Rural",S$11:S$42) -> 530.4848485
B46: AVERAGE North and Islands | C46: =SUMIF($T$11:$T$42,"North and Islands",C$11:C$42) -> 12277000 | D46: =SUMIF($T$11:$T$42,"North and Islands",D$11:D$42) -> 11314000 | E46: =SUMIF($T$11:$T$42,"North and Islands",E$11:E$42) -> 23591000 | F46: =SUMIF($T$11:$T$42,"North and Islands",F$11:F$42) -> 4060 | G46: =AVERAGEIF($T$11:$T$42,"North and Islands",G$11:G$42) -> 8480.453163 | H46: =SUMIF($T$11:$T$42,"North and Islands",H$11:H$42) -> 12389000 | I46: =SUMIF($T$11:$T$42,"North and Islands",I$11:I$42) -> 9038000 | J46: =SUMIF($T$11:$T$42,"North and Islands",J$11:J$42) -> 21427000 | K46: =SUMIF($T$11:$T$42,"North and Islands",K$11:K$42) -> 4120 | L46: =AVERAGEIF($T$11:$T$42,"North and Islands",L$11:L$42) -> 8596.439465 | M46: =SUMIF($T$11:$T$42,"North and Islands",M$11:M$42) -> 12985000 | N46: =SUMIF($T$11:$T$42,"North and Islands",N$11:N$42) -> 10413000 | O46: =SUMIF($T$11:$T$42,"North and Islands",O$11:O$42) -> 23398000 | P46: =SUMIF($T$11:$T$42,"North and Islands",P$11:P$42) -> 3982 | Q46: =AVERAGEIF($T$11:$T$42,"North and Islands",Q$11:Q$42) -> 9185.654817 | R46: =AVERAGEIF($T$11:$T$42,"North and Islands",R$11:R$42) -> 8754.182482 | S46: =AVERAGEIF($T$11:$T$42,"North and Islands",S$11:S$42) -> 579.1428571
B47: AVERAGE Tayside, Fife and Central | C47: =SUMIF($T$11:$T$42,"Tayside, Fife and Central",C$11:C$42) -> 12337000 | D47: =SUMIF($T$11:$T$42,"Tayside, Fife and Central",D$11:D$42) -> 15561000 | E47: =SUMIF($T$11:$T$42,"Tayside, Fife and Central",E$11:E$42) -> 27898000 | F47: =SUMIF($T$11:$T$42,"Tayside, Fife and Central",F$11:F$42) -> 5750 | G47: =AVERAGEIF($T$11:$T$42,"Tayside, Fife and Central",G$11:G$42) -> 5716.608346 | H47: =SUMIF($T$11:$T$42,"Tayside, Fife and Central",H$11:H$42) -> 12232000 | I47: =SUMIF($T$11:$T$42,"Tayside, Fife and Central",I$11:I$42) -> 15000000 | J47: =SUMIF($T$11:$T$42,"Tayside, Fife and Central",J$11:J$42) -> 27232000 | K47: =SUMIF($T$11:$T$42,"Tayside, Fife and Central",K$11:K$42) -> 5620 | L47: =AVERAGEIF($T$11:$T$42,"Tayside, Fife and Central",L$11:L$42) -> 5386.204821 | M47: =SUMIF($T$11:$T$42,"Tayside, Fife and Central",M$11:M$42) -> 12648000 | N47: =SUMIF($T$11:$T$42,"Tayside, Fife and Central",N$11:N$42) -> 15290000 | O47: =SUMIF($T$11:$T$42,"Tayside, Fife and Central",O$11:O$42) -> 27938000 | P47: =SUMIF($T$11:$T$42,"Tayside, Fife and Central",P$11:P$42) -> 5642 | Q47: =AVERAGEIF($T$11:$T$42,"Tayside, Fife and Central",Q$11:Q$42) -> 5801.375788 | R47: =AVERAGEIF($T$11:$T$42,"Tayside, Fife and Central",R$11:R$42) -> 5634.729651 | S47: =AVERAGEIF($T$11:$T$42,"Tayside, Fife and Central",S$11:S$42) -> 810.0952381
B48: AVERAGE Ayrshire and South | C48: =SUMIF($T$11:$T$42,"Ayrshire and South",C$11:C$42) -> 23249000 | D48: =SUMIF($T$11:$T$42,"Ayrshire and South",D$11:D$42) -> 4975000 | E48: =SUMIF($T$11:$T$42,"Ayrshire and South",E$11:E$42) -> 28224000 | F48: =SUMIF($T$11:$T$42,"Ayrshire and South",F$11:F$42) -> 2895 | G48: =AVERAGEIF($T$11:$T$42,"Ayrshire and South",G$11:G$42) -> 14340.54189 | H48: =SUMIF($T$11:$T$42,"Ayrshire and South",H$11:H$42) -> 21506000 | I48: =SUMIF($T$11:$T$42,"Ayrshire and South",I$11:I$42) -> 6729000 | J48: =SUMIF($T$11:$T$42,"Ayrshire and South",J$11:J$42) -> 28235000 | K48: =SUMIF($T$11:$T$42,"Ayrshire and South",K$11:K$42) -> 3265 | L48: =AVERAGEIF($T$11:$T$42,"Ayrshire and South",L$11:L$42) -> 12410.90604 | M48: =SUMIF($T$11:$T$42,"Ayrshire and South",M$11:M$42) -> 22128000 | N48: =SUMIF($T$11:$T$42,"Ayrshire and South",N$11:N$42) -> 6475000 | O48: =SUMIF($T$11:$T$42,"Ayrshire and South",O$11:O$42) -> 28603000 | P48: =SUMIF($T$11:$T$42,"Ayrshire and South",P$11:P$42) -> 2742 | Q48: =AVERAGEIF($T$11:$T$42,"Ayrshire and South",Q$11:Q$42) -> 14018.20474 | R48: =AVERAGEIF($T$11:$T$42,"Ayrshire and South",R$11:R$42) -> 13589.88422 | S48: =AVERAGEIF($T$11:$T$42,"Ayrshire and South",S$11:S$42) -> 593.4666667
B49: AVERAGE West | C49: =SUMIF($T$11:$T$42,"West",C$11:C$42) -> 27795000 | D49: =SUMIF($T$11:$T$42,"West",D$11:D$42) -> 44856000 | E49: =SUMIF($T$11:$T$42,"West",E$11:E$42) -> 72651000 | F49: =SUMIF($T$11:$T$42,"West",F$11:F$42) -> 10460 | G49: =AVERAGEIF($T$11:$T$42,"West",G$11:G$42) -> 4990.969916 | H49: =SUMIF($T$11:$T$42,"West",H$11:H$42) -> 11109000 | I49: =SUMIF($T$11:$T$42,"West",I$11:I$42) -> 58695000 | J49: =SUMIF($T$11:$T$42,"West",J$11:J$42) -> 69804000 | K49: =SUMIF($T$11:$T$42,"West",K$11:K$42) -> 11060 | L49: =AVERAGEIF($T$11:$T$42,"West",L$11:L$42) -> 4960.291607 | M49: =SUMIF($T$11:$T$42,"West",M$11:M$42) -> 11002000 | N49: =SUMIF($T$11:$T$42,"West",N$11:N$42) -> 58088000 | O49: =SUMIF($T$11:$T$42,"West",O$11:O$42) -> 69090000 | P49: =SUMIF($T$11:$T$42,"West",P$11:P$42) -> 10037 | Q49: =AVERAGEIF($T$11:$T$42,"West",Q$11:Q$42) -> 5123.868158 | R49: =AVERAGEIF($T$11:$T$42,"West",R$11:R$42) -> 5025.043227 | S49: =AVERAGEIF($T$11:$T$42,"West",S$11:S$42) -> 1502.714286
B50: AVERAGE Edinburgh, Lothians and Borders | C50: =SUMIF($T$11:$T$42,"Edinburgh, Lothians and Borders",C$11:C$42) -> 23554000 | D50: =SUMIF($T$11:$T$42,"Edinburgh, Lothians and Borders",D$11:D$42) -> 28856000 | E50: =SUMIF($T$11:$T$42,"Edinburgh, Lothians and Borders",E$11:E$42) -> 52410000 | F50: =SUMIF($T$11:$T$42,"Edinburgh, Lothians and Borders",F$11:F$42) -> 6735 | G50: =AVERAGEIF($T$11:$T$42,"Edinburgh, Lothians and Borders",G$11:G$42) -> 7013.890939 | H50: =SUMIF($T$11:$T$42,"Edinburgh, Lothians and Borders",H$11:H$42) -> 21697000 | I50: =SUMIF($T$11:$T$42,"Edinburgh, Lothians and Borders",I$11:I$42) -> 28575000 | J50: =SUMIF($T$11:$T$42,"Edinburgh, Lothians and Borders",J$11:J$42) -> 50272000 | K50: =SUMIF($T$11:$T$42,"Edinburgh, Lothians and Borders",K$11:K$42) -> 7275 | L50: =AVERAGEIF($T$11:$T$42,"Edinburgh, Lothians and Borders",L$11:L$42) -> 6195.345276 | M50: =SUMIF($T$11:$T$42,"Edinburgh, Lothians and Borders",M$11:M$42) -> 24471000 | N50: =SUMIF($T$11:$T$42,"Edinburgh, Lothians and Borders",N$11:N$42) -> 30337000 | O50: =SUMIF($T$11:$T$42,"Edinburgh, Lothians and Borders",O$11:O$42) -> 54808000 | P50: =SUMIF($T$11:$T$42,"Edinburgh, Lothians and Borders",P$11:P$42) -> 6938 | Q50: =AVERAGEIF($T$11:$T$42,"Edinburgh, Lothians and Borders",Q$11:Q$42) -> 6681.75104 | R50: =AVERAGEIF($T$11:$T$42,"Edinburgh, Lothians and Borders",R$11:R$42) -> 6630.329085 | S50: =AVERAGEIF($T$11:$T$42,"Edinburgh, Lothians and Borders",S$11:S$42) -> 1163.777778
B51: TOTAL AVERAGE | G51: =SUM(G11:G42)/32 -> 7753.196095 | L51: =SUM(L11:L42)/32 -> 7244.598535 | Q51: =SUM(Q11:Q42)/32 -> 7842.431914 | R51: =SUM((Q51+L51))/2 -> 7543.515225

Sheet Sensitivity data (hidden)
A1: 0 | B1: -1
A2: 0.01 | B2: -0.75
A3: 0.05 | B3: -0.5
A4: 0.1 | B4: -0.45
A5: 0.15 | B5: -0.4
A6: 0.2 | B6: -0.35
A7: 0.25 | B7: -0.3
A8: 0.3 | B8: -0.25
A9: 0.35 | B9: -0.2
A10: 0.4 | B10: -0.15
A11: 0.45 | B11: -0.1
A12: 0.5 | B12: -0.05
A13: 0.55 | B13: -0.01
A14: 0.6 | B14: 0
A15: 0.65 | B15: 0.01
A16: 0.7 | B16: 0.05
A17: 0.75 | B17: 0.1
A18: 0.8 | B18: 0.15
A19: 0.85 | B19: 0.2
A20: 0.9 | B20: 0.25
A21: 0.95 | B21: 0.3
A22: 1 | B22: 0.35
A23: 1.25 | B23: 0.4
A24: 1.5 | B24: 0.45
A25: 1.75 | B25: 0.5
A26: 2 | B26: 0.75
B27: 1
